[Event "Serbian League 2024"]
[Site "Bajina Basta"]
[Date "2024.10.01"]
[Round "5.34"]
[White "Tadic, Stefan"]
[Black "Omorjan, Dejan"]
[Result "1-0"]
[Annotator "TA"]
[ECO "B90"]
[WhiteElo "2440"]
[BlackElo "2299"]
[PlyCount "100"]
[EventDate "2024.09.26"]
[EventType "team-tourn"]
[EventCountry "SRB"]
[SourceTitle "playchess.com"]
[Source "ChessBase"]
[SourceQuality "1"]
[TimeControl "40/5400+30:1800+30"]

{[%evp 12,100,0,7,20,12,2,1,16,11,10,20,12,0,0,0,20,1,14,10,46,51,61,51,63,59,77,53,64,61,61,43,74,67,69,70,70,79,86,79,75,56,43,56,68,61,41,43,27,25,131,79,89,0,91,99,114,102,108,123,110,127,181,145,190,195,205,193,194,152,262,262,265,271,320,318,308,298,304,264,398,465,610,604,833,756,4798,2808,29988,29989,29987]} 1. e4 {[%emt 0:00:06]} c5 {[%emt 0:00:19]} 2. Nf3 {[%emt 0:00:09]} d6 {[%emt 0:00:18]} 3. d4 {[%emt 0:00:08]} cxd4 {[%emt 0:00:10]} 4. Nxd4 {[%emt 0:00:07]} Nf6 {[%emt 0:00:12]} 5. Nc3 {[%emt 0:00:06]} a6 {[%emt 0:00:15]} 6. h3 {[%emt 0:00:05]} e5 {[%emt 0:01:08]} 7. Nb3 {[%emt 0:00:12]} Be7 {[%emt 0:00:31] B90: Sicilian Najdorf: Unusual White 6th moves, 6 Be3 Ng4 and 6 Be3 e5.} 8. g4 {[%emt 0:00:33]} h6 {[%emt 0:00:41]} 9. Be3 {[%emt 0:00:09]} Qc7 {[%emt 0:04:30]} 10. a4 {[%emt 0:02:19]} b6 {[%emt 0:06:09]} 11. Bg2 {[%emt 0:13:43]} Nc6 $146 {[%emt 0:17:50]} ({Predecessor:} 11... Nbd7 12. O-O Nc5 13. a5 b5 14. Nxc5 dxc5 15. Nd5 Nxd5 16. exd5 Bd6 17. Qd2 O-O {1-0 Eric,J (2252)-Trunz,M (1821) BL 2223 (Women) 2022 (2.6)}) 12. Nd5 {[%emt 0:13:07]} Nxd5 {[%emt 0:00:45]} 13. exd5 {[%emt 0:00:05]} Nb8 {[%emt 0:00:51]} 14. O-O {[%emt 0:01:24]} Nd7 {[%emt 0:13:09]} 15. f4 {[%emt 0:01:11]} Rb8 {[%emt 0:03:20]} 16. fxe5 {[%emt 0:08:08]} dxe5 {[%emt 0:01:54]} 17. Nd2 {[%emt 0:00:58]} Bc5 {[%emt 0:03:32]} 18. Bxc5 {[%emt 0:02:11]} (18. Nc4 {with more complications.} b5 19. d6 Qa7 20. Qf3) 18... Qxc5+ {[%emt 0:01:12]} 19. Kh1 {[%emt 0:01:34]} O-O {[%emt 0:02:28]} 20. Ne4 {[%emt 0:07:34]} Qe7 {[%emt 0:01:42]} 21. Qd2 {[%emt 0:01:35]} Qh4 {[%emt 0:04:22]} 22. b4 {[%emt 0:02:46]} h5 {[%emt 0:06:30]} 23. g5 {[%emt 0:03:18]} b5 {[%emt 0:06:33]} 24. a5 {[%emt 0:01:31] Against Nb6} f5 {[%emt 0:06:54]} 25. gxf6 {[%emt 0:03:38]} Nxf6 {[%emt 0:00:56]} 26. Qe1 {[%emt 0:01:33]} Qxe1 {[%emt 0:01:33]} 27. Raxe1 {[%emt 0:04:09] Black must now prevent Nc5.} (27. Nxf6+ gxf6 28. Raxe1 Bd7) 27... Nxd5 {[%emt 0:04:17]} 28. Rxf8+ {[%emt 0:14:24]} Kxf8 {[%emt 0:00:01]} 29. c3 {[%emt 0:00:12]} Nf4 {[%emt 0:03:04]} 30. Nc5 {[%emt 0:00:13][%mdl 1024] Repels Bb7. White has compensation.} Ng6 {[%emt 0:05:38]} (30... Nxg2 31. Kxg2 g6 32. Rxe5 $16) (30... Ke7 $11) 31. Be4 {[%emt 0:05:12]} (31. Bf3 $142) 31... Nf4 $16 {[%emt 0:00:53]} 32. Bg2 {[%emt 0:00:24]} Ng6 {[%emt 0:00:05]} ({But not} 32... Nxh3 33. Rxe5 Nf4 34. Bc6 $14) (32... Nxg2 33. Kxg2 Ra8 34. h4 $16 (34. Rxe5 g6 $18)) 33. Kh2 {[%emt 0:09:00]} Ke7 {[%emt 0:01:08] [#]} 34. Bf3 $1 {[%emt 0:00:03]} Kf6 {[%emt 0:02:08]} 35. Rd1 {[%emt 0:01:31]} ({Don't do} 35. Bxh5 Nf4 36. Be2 Bxh3 $11) 35... Ke7 {[%emt 0:00:09] Prevents Rd6.} 36. Rg1 {[%emt 0:00:04]} Nh4 {[%emt 0:01:38]} (36... Bf5 $16) 37. Bxh5 {[%emt 0:02:19]} (37. Rxg7+ Kf6 38. Rg3 Nxf3+ 39. Rxf3+ Ke7) 37... g6 {[%emt 0:00:40]} 38. Bg4 {[%emt 0:00:46]} (38. Bxg6 $2 Nf3+ 39. Kh1 Nxg1 40. Kxg1 Bxh3 $17) 38... Bxg4 {[%emt 0:00:48]} 39. Rxg4 $18 {[%emt 0:00:05][%mdl 4096] Endgame. KRN-KRN} g5 {[%emt 0:00:28]} 40. Kg3 {[%emt 0:02:52]} Rg8 {[%emt 0:01:10]} (40... Nf5+ $16 {was called for.} 41. Kf3 Rh8) 41. Nxa6 {[%emt 0:30:50]} Nf5+ {[%emt 0:07:31]} 42. Kf2 {[%emt 0:00:00]} Nh6 {[%emt 0:09:15]} 43. Rg1 {[%emt 0:00:00]} Kd6 {[%emt 0:00:33]} 44. Nc5 {[%emt 0:00:00][%cal Og1g5] Strongly threatening Rxg5!} Kd5 {[%emt 0:00:47]} 45. Ke2 {[%emt 0:00:00]} Kc4 {[%emt 0:01:17]} (45... Nf5 $142 46. a6 Nh4 47. Rd1+ Kc4) 46. Ne4 {[%emt 0:00:00]} g4 {[%emt 0:01:04]} 47. hxg4 {[%emt 0:00:00]} Nxg4 {[%emt 0:01:42]} 48. a6 {[%emt 0:00:00] And now Nf6 would win.} Ra8 {[%emt 0:01:07]} 49. Rxg4 {[%emt 0:00:00]} Rxa6 {[%emt 0:00:09]} 50. Nc5+ {[%emt 0:00:00]} Kd5 {[%emt 0:12:14]} 1-0

[Event "Serbian League 2024"]
[Site "Bajina Basta"]
[Date "2024.10.01"]
[Round "5.35"]
[White "Gagic, Milan A"]
[Black "Ratkovic, Milovan"]
[Result "0-1"]
[Annotator "RC"]
[ECO "B90"]
[WhiteElo "2284"]
[BlackElo "2429"]
[PlyCount "106"]
[EventDate "2024.09.26"]
[EventType "team-tourn"]
[EventCountry "SRB"]
[SourceTitle "playchess.com"]
[Source "ChessBase"]
[SourceQuality "1"]
[TimeControl "40/5400+30:1800+30"]

1. e4 {[%emt 0:01:34]} c5 {[%emt 0:05:27]} 2. Nf3 {[%emt 0:00:09]} d6 {[%emt 0:00:34]} 3. d4 {[%emt 0:00:14]} cxd4 {[%emt 0:00:07]} 4. Nxd4 {[%emt 0:00:07]} Nf6 {[%emt 0:00:07]} 5. Nc3 {[%emt 0:00:04]} a6 {[%emt 0:01:47]} 6. Be3 {[%emt 0:00:30]} Ng4 {[%emt 0:00:42]} 7. Bc1 {[%emt 0:04:36]} Nf6 {[%emt 0:00:10]} 8. Be3 {[%emt 0:05:09]} Ng4 {[%emt 0:01:07]} 9. Bc1 {[%emt 0:03:39]} Nf6 {[%emt 0:01:58]} 10. h4 {[%emt 0:02:58]} e5 {[%emt 0:01:30]} 11. Nb3 {[%emt 0:01:53]} Be7 {[%emt 0:00:12]} 12. Be2 {[%emt 0:01:44]} Be6 {[%emt 0:01:31]} 13. f4 {[%emt 0:00:04]} Nc6 {[%emt 0:02:18]} 14. f5 {[%emt 0:02:44]} Bxb3 {[%emt 0:05:14]} 15. axb3 {[%emt 0:00:32]} d5 {[%emt 0:02:05]} 16. exd5 {[%emt 0:14:02]} Nd4 {[%emt 0:01:12]} 17. Bf3 {[%emt 0:07:25]} Bb4 {[%emt 0:12:58]} 18. Bg5 {[%emt 0:07:32]} h6 {[%emt 0:11:02]} 19. Bxf6 {[%emt 0:02:45]} Qxf6 {[%emt 0:00:03]} 20. Qd3 {[%emt 0:00:44]} Nxf5 {[%emt 0:09:18]} 21. O-O-O {[%emt 0:06:39]} Bxc3 {[%emt 0:00:28]} 22. bxc3 {[%emt 0:03:36]} Nd6 {[%emt 0:00:19]} 23. Kb1 {[%emt 0:03:39]} O-O {[%emt 0:01:17]} 24. c4 {[%emt 0:05:06]} Rac8 {[%emt 0:05:57]} 25. Bg4 {[%emt 0:06:25]} Rc5 {[%emt 0:01:46]} 26. Qe3 {[%emt 0:02:56]} b6 {[%emt 0:00:01]} 27. Be2 {[%emt 0:01:47]} Nf5 {[%emt 0:17:12]} 28. Qf2 {[%emt 0:04:08]} Ra5 {[%emt 0:04:48]} 29. Kb2 {[%emt 0:00:48]} b5 {[%emt 0:07:25]} 30. c3 {[%emt 0:03:23]} b4 {[%emt 0:01:47]} 31. cxb4 {[%emt 0:00:16]} e4+ {[%emt 0:02:42]} 32. Rd4 {[%emt 0:00:04]} Qxd4+ {[%emt 0:02:27]} 33. Qxd4 {[%emt 0:00:03]} Nxd4 {[%emt 0:00:01]} 34. bxa5 {[%emt 0:03:22]} Nxe2 {[%emt 0:00:03]} 35. Re1 {[%emt 0:00:26]} Ng3 {[%emt 0:00:49]} 36. Re3 {[%emt 0:00:48]} Re8 {[%emt 0:00:02]} 37. Kc3 {[%emt 0:01:45]} f5 {[%emt 0:01:15]} 38. Rxg3 {[%emt 0:04:54]} e3 {[%emt 0:00:02]} 39. Rxe3 {[%emt 0:00:40]} Rxe3+ {[%emt 0:00:02]} 40. Kd4 {[%emt 0:00:06]} Rxb3 {[%emt 0:01:07]} 41. Kc5 {[%emt 0:04:50]} f4 {[%emt 0:13:31]} 42. Kc6 {[%emt 0:03:47]} g5 {[%emt 0:05:14]} 43. hxg5 {[%emt 0:00:43]} hxg5 {[%emt 0:00:01]} 44. d6 {[%emt 0:02:00]} g4 {[%emt 0:01:23]} 45. d7 {[%emt 0:00:44]} Rd3 {[%emt 0:00:37]} 46. Kc7 {[%emt 0:00:39]} f3 {[%emt 0:00:24]} 47. gxf3 {[%emt 0:00:06]} gxf3 {[%emt 0:00:18]} 48. d8=Q+ {[%emt 0:00:28]} Rxd8 {[%emt 0:00:07]} 49. Kxd8 {[%emt 0:00:03]} f2 {[%emt 0:00:07]} 50. c5 {[%emt 0:00:06]} f1=Q {[%emt 0:00:10]} 51. c6 {[%emt 0:00:03]} Qb5 {[%emt 0:00:33]} 52. c7 {[%emt 0:00:12]} Qxa5 {[%emt 0:00:08]} 53. Ke8 {[%emt 0:00:06]} Qe5+ {[%emt 0:00:21]} 0-1

[Event "Serbian League 2024"]
[Site "Bajina Basta"]
[Date "2024.10.01"]
[Round "5.36"]
[White "Tadic, Branko"]
[Black "Pajcin, Lav"]
[Result "1-0"]
[Annotator "TA"]
[ECO "A07"]
[WhiteElo "2424"]
[BlackElo "2242"]
[PlyCount "109"]
[EventDate "2024.09.26"]
[EventType "team-tourn"]
[EventCountry "SRB"]
[SourceTitle "playchess.com"]
[Source "ChessBase"]
[SourceQuality "1"]
[TimeControl "40/5400+30:1800+30"]

{[%evp 9,109,37,53,1,22,-36,62,60,59,53,250,223,212,227,249,248,259,210,244,127,193,178,210,176,167,182,296,148,154,164,183,166,170,171,147,162,221,193,230,193,315,307,284,302,259,156,184,188,219,215,250,71,45,57,59,61,57,65,44,45,61,29,88,67,59,13,13,22,55,34,52,49,30,27,157,148,146,109,122,105,117,107,108,109,183,193,213,131,324,293,350,329,4795,2312,29976,29980,5897,6039,5473,5473,29983,752]} 1. Nf3 {[%emt 0:08:00]} d5 {[%emt 0:00:12]} 2. g3 {[%emt 0:00:18]} Bg4 {[%emt 0:00:43]} 3. Bg2 {[%emt 0:00:06]} e6 {[%emt 0:00:07]} 4. O-O {[%emt 0:05:45]} Nf6 {[%emt 0:00:17]} 5. d3 {[%emt 0:00:08]} Be7 {[%emt 0:03:29]} 6. Qe1 {[%emt 0:01:53] A07: Réti Opening: New York en Capablanca Systemen.} (6. h3 $14) 6... O-O {[%emt 0:00:17]} 7. e4 {[%emt 0:00:15] Fout (0.6)} (7. Ne5 $11) 7... c5 {[%emt 0:02:16] Fout (1.0)} (7... Nc6 $15) 8. Ne5 $14 {[%emt 0:06:15] Beste (Gemakkelijk). Wit staat iets beter.} Bh5 {[%emt 0:00:19] OK} 9. f4 {[%emt 0:00:47]} {Zwart zou moeten spelen} Ne8 $146 {[%emt 0:20:08] Verliest partij (2.0)} (9... Nbd7 $14) ({Predecessor:} 9... Nc6 10. Nxc6 bxc6 11. Nc3 h6 12. h3 Bg6 13. g4 Bh7 14. b3 c4 15. dxc4 Bc5+ {0-1 Gukesh,D (2578)-Suleymanli,A (2560) Junior Speed Qual Global blitz 2021 (1.12)}) 10. exd5 $18 {[%emt 0:08:18] OK} f6 {[%emt 0:06:14] OK} 11. g4 {[%emt 0:08:33] OK} fxe5 {[%emt 0:01:41]} 12. gxh5 {[%emt 0:00:04] OK} exd5 {[%emt 0:00:41] OK} 13. Nc3 {[%emt 0:10:40][%cal Rg2d5] OK} ({Doe niet} 13. fxe5 $6 Rxf1+ 14. Qxf1 Nc6 $16) (13. Qxe5 Nc7 $16) 13... Nc7 {[%emt 0:01:29] OK} {Beter is} 14. Qxe5 {[%emt 0:03:48] Fout (1.2)} (14. fxe5 $18 {Rxf8+ is de sterke dreiging.} Rxf1+ 15. Qxf1) 14... d4 {[%emt 0:02:49] pakt misschien beter uit. Fout (0.7)} (14... Nc6 $16 15. Bxd5+ Nxd5 16. Qxd5+ Kh8) 15. Nd5 {[%emt 0:01:32] OK} Bd6 {[%emt 0:01:36][%cal Be7d6,Bd6c7,Bc7b6][%mdl 32] EV=11.92. Goes to b6 (dbg)). OK} 16. Qg5 {[%emt 0:01:04]} Nc6 {[%emt 0:04:51] OK} 17. Bd2 $40 {[%emt 0:04:33][%mdl 128] Wit gaat voor de koning. OK} h6 {[%emt 0:06:16] is een betere verdediging. Fout (1.1)} (17... Kh8 18. Qxd8 Raxd8 19. Nxc7 Bxc7 20. Bxc6 bxc6) {Wit moet spelen} 18. Qxd8 {[%emt 0:07:00] Fout (1.5)} (18. Qg6 $18) 18... Raxd8 $16 {[%emt 0:00:21]} 19. Rae1 {[%emt 0:02:22][%cal Ba1e1,Be1e7,Be7e8][%mdl 32] EV=23.85. Goes to e8 (dbg)). OK} Rf5 {[%emt 0:04:05] OK} 20. Nxc7 {[%emt 0:02:57] OK} Bxc7 {[%emt 0:00:06]} 21. Bxc6 {[%emt 0:04:21] OK} bxc6 {[%emt 0:00:07]} 22. Re7 {[%emt 0:00:32] OK} Rf7 {[%emt 0:02:14] was een poging waard. Fout (0.6)} (22... Bd6 23. Rxa7 c4) 23. Rfe1 $18 {[%emt 0:00:22]} Rd5 {[%emt 0:06:06] OK} 24. Re8+ {[%emt 0:02:14] Beste (Gemakkelijk)} Rf8 {[%emt 0:06:01] was hoogst noodzakelijk. Fout (1.2)} (24... Kh7) 25. R1e7 {[%emt 0:01:09] OK} Bb6 {[%emt 0:07:14]} 26. a4 {[%emt 0:03:52]} c4 {[%emt 0:00:05]} 27. Kg2 {[%emt 0:07:15] Onnauwkeurig} cxd3 {[%emt 0:00:20]} 28. cxd3 {[%emt 0:00:02] En nu zou b4 winnen.} Rxe8 {[%emt 0:06:15]} 29. Rxe8+ $16 {[%emt 0:00:07][%mdl 4096] Eindspel. KRB-KRB} Kf7 {[%emt 0:00:02] Beste} 30. Ra8 {[%emt 0:01:16] biedt betere winstkansen. Gemiste overwinning (1.8)} (30. Rc8 $1 $18) 30... Rc5 {[%emt 0:00:49][%cal Oc5c2] Beste} (30... Rxh5 $2 31. a5 $18) 31. Kf3 {[%emt 0:03:07][%cal Oa4a5]} Rc2 $1 {[%emt 0:00:45] Sterk} 32. Be1 {[%emt 0:01:36] Hoopt vervolgens op a5. OK} Rxb2 {[%emt 0:02:41] Beste (Gemakkelijk)} 33. a5 {[%emt 0:00:07] OK} Bc5 {[%emt 0:00:11] OK} 34. Rc8 {[%emt 0:00:05] OK} Rxh2 {[%emt 0:00:58] Beste (Gemakkelijk)} 35. Rc7+ {[%emt 0:03:07] OK} Ke6 {[%emt 0:03:22] Fout (0.6)} (35... Kg8 $11) 36. Rxg7 {[%emt 0:03:37]} Rxh5 {[%emt 0:08:25] Beste (Gemakkelijk)} 37. Ke4 {[%emt 0:00:02] OK} Rh2 {[%emt 0:00:53] OK} 38. f5+ {[%emt 0:00:14][%mdl 1024] Wit heeft compensatie. OK} Kf6 {[%emt 0:00:03] Beste (Gemakkelijk)} 39. Rg6+ {[%emt 0:00:08] Beste (Gemakkelijk)} Kf7 $1 {[%emt 0:00:22] Sterke dreiging met ...Re2+.} 40. Bg3 {[%emt 0:02:24]} (40. Rxc6 Re2+ 41. Kd5 Rxe1 $17) 40... Re2+ {[%emt 0:00:25] OK} 41. Kf4 {[%emt 0:01:16] OK} Ra2 {[%emt 0:09:19] Houdt de partij in balans. Fout (1.3)} (41... Bb4 $11) 42. Rxh6 {[%emt 0:04:10]} Rxa5 {[%emt 0:00:25]} 43. Rxc6 {[%emt 0:01:36] Dreigt te winnen met Ke4.} Be7 {[%emt 0:02:45] OK} 44. Ke4 {[%emt 0:02:46]} Bf6 {[%emt 0:01:03] Ontwijkt Be5. OK} 45. Rc7+ {[%emt 0:00:07]} Ke8 {[%emt 0:00:55]} 46. Bd6 {[%emt 0:00:34] Wit is actiever. OK} Bd8 {[%emt 0:07:41] zou beter kunnen zijn. Fout (0.7)} (46... a6 $16 47. Ra7 Ra2) 47. Rc4 $1 $18 {[%emt 0:02:34] OK} Bb6 {[%emt 0:07:12]} 48. Be5 {[%emt 0:00:50] Zwart moet nu Rc8+ voorkomen. Onnauwkeurig} Rb5 $2 {[%emt 0:01:12] [#] kan gunstiger zijn. Verliest partij (1.9)} (48... Kd7 $16 49. Bxd4 Bxd4) 49. Rc8+ $1 {[%emt 0:01:59] Sterk} (49. Bxd4 Bxd4 50. Rxd4 Ke7 $16) 49... Kf7 {[%emt 0:00:39]} 50. Rh8 {[%emt 0:00:05] OK} (50. Bxd4 Bxd4 51. Kxd4 Rxf5 $11) 50... a5 $2 {[%emt 0:02:19] [#] Fout (44.7)} (50... a6 51. Rh7+ (51. Bxd4 Rb4 $11) 51... Ke8) 51. Rh7+ $1 {[%emt 0:00:41] Sterk} (51. Bxd4 Bxd4 52. Kxd4 Rxf5 $11) 51... Kg8 {[%emt 0:00:21] Onnauwkeurig} 52. Rg7+ {[%emt 0:00:11]} Kf8 {[%emt 0:00:06]} 53. Rb7 {[%emt 0:00:23]} (53. Bxd4 $2 {vergaat.} Bxd4 54. Rc7 Bb6 $19) 53... Rb2 {[%emt 0:00:51]} 54. Kd5 {[%emt 0:00:22][%cal Od5e6] Dreigt mat met Ke6!} (54. Bxd4 $2 {slaat de verkeerde figuur.} Bxd4 55. Rc7 Bb6 $19) 54... Ke8 {[%emt 0:04:20]} 55. Ke4 {[%emt 0:20:31] Blunder waarde: Wit=0.24 (precies) /Zwart=0.69.  Verliest partij:   	---       	Zwart=2      Gemiste overwinning: 	Wit=1      	---        Fout:        	Wit=3      	Zwart=9      Onnauwkeurig:    	Wit=2      	Zwart=1      OK:         	Wit=21     	Zwart=13     Beste:        	Wit=3      	Zwart=6      Sterk:        	Wit=2      	Zwart=2} (55. Bxd4 $2 {verliest.} Bxd4 56. Rh7 Rb4 $19) (55. Ke6 $142 Bc7 56. Rxb2 Bxe5 57. Kxe5 Ke7 58. f6+ (58. Kxd4 Kf6 $18) 58... Kf7 59. Rb7+ (59. Kxd4 Kxf6 60. Ra2 Ke6 $18) 59... Kg6 60. Rg7+ (60. Kxd4 Kxf6 61. Kd5 a4 $18) 60... Kh6 61. Rg1 (61. Kxd4 a4 62. Rg1 Kh7 63. f7 a3 64. f8=Q a2 65. Qg7#) 61... a4 62. f7 (62. Kxd4 Kh7 63. f7 a3 64. f8=Q a2 65. Qg7#) 62... Kh7 63. f8=Q a3 64. Qg7#) 1-0